Workbook

Sheet Sheet1
A1: The Tangent Parabola to a Curve
B3: This graphing utility lets you investigate
B4: the parabola that is tangent to the curve
C5: of any desired function
D6: y = f(x)
B7: on any interval from x = a to x = b.
A9: Enter the function in terms of x: f(x) = | F9: x^4-5*x^2+4*x+3
A12: Now enter the interval for x:
C13: xMin = | D13: -3
C14: xMax = | D14: 2
M19: The graph of the function y = | P19: =F9 -> x^4-5*x^2+4*x+3
A21: Click each item below for suggestions and investigations
B22: Item 1 | M22: Select the point of tangency x0 = | Q22: =P24 -> -0.3
B23: Item 2
B24: Item 3 | O24: 54 | P24: =D13+O24*(D14-D13)/100 -> -0.3
B25: Item 4
M27: The equation of the tangent parabola is
L28: y = | M28: =Sheet2!K1 -> 1.3395 + 6.8938[x - (-.3)] + -8.9364[x - (-.3)]^2/2
A29: To access/download all the DIGMath Apps for Calculus
A30: Click this link: | C30: DIGMath for Calculus
A32: Created by: Sheldon P. Gordon
A33: Farmingdale State College
A34: Development of this module was supported by the
A35: NSF's Division of Undergraduate Education
A36: under grants DUE-0310123 and DUE-0442160.

Sheet Sheet2
A1: x | B1: f(x) | C1: slope | D1: f " | E1: parabola | F1: xl= | G1: =IF(Sheet1!$P$24<Sheet1!D13+80*Sheet2!G5,Sheet1!D13,Sheet1!P24-80*Sheet2!G5) -> -0.6996003996 | H1: =LOOKUP(Sheet1!P24,Sheet2!A3:A1002,Sheet2!B3:B1002)+LOOKUP(Sheet1!P24,Sheet2!A3:A1002,Sheet2!C3:C1002)*(G1-Sheet1!P24) -> -1.415277314 | I1: "=yl | K1: =TEXT(G10,"###.####")&" + " &TEXT(G11,"###.####") &"[x - (" & TEXT(G9,"###.####") & ")] + " &TEXT(G12,"###.####") &"[x - (" & TEXT(G9,"###.####") & ")]^2/2" -> 1.3395 + 6.8938[x - (-.3)] + -8.9364[x - (-.3)]^2/2
F2: xr= | G2: =IF(Sheet1!$P$24>Sheet1!D14-80*Sheet2!G5,Sheet1!D14,Sheet1!P24+80*Sheet2!G5) -> 0.0996003996 | H2: =LOOKUP(Sheet1!P24,Sheet2!A3:A1003,Sheet2!B3:B1003)+LOOKUP(Sheet1!P24,Sheet2!A3:A1003,Sheet2!C3:C1003)*(G2-Sheet1!P24) -> 4.094232843 | I2: "=yR
A3: =Sheet1!D13 -> -3.00 | B3: =x^4-5*x^2+4*x+3 -> 27 | C3: =(B4-B3)/Sheet2!$G$5 -> -73.75554403 | D3: =(C4-C3)/G$5 -> 97.64070894 | E3: =G$10+G$11*(A3-G$9)+G$12*(A3-G$9)^2/2 -> -49.8470017 | J3: =G9 -> -0.3 | K3: =G10 -> 1.339477765
A4: =A3+Sheet2!G$5 -> -3.00 | B4: 26.63159069 | C4: =(B5-B4)/Sheet2!$G$5 -> -73.2678282 | D4: =(B5-2*B4+B3)/G$5^2 -> 97.64070894 | E4: =G$10+G$11*(A4-G$9)+G$12*(A4-G$9)^2/2 -> -49.69215746 | J4: =IF(AND(E4>G$7,E4<G$8),A4,Sheet1!$Q$22) -> -0.3 | K4: =IF(AND(E4>G$7,E4<G$8),E4,G$10) -> 1.339477765
A5: =A4+Sheet2!G$5 -> -2.99 | B5: 26.26561752 | C5: =(B6-B5)/Sheet2!$G$5 -> -72.78190429 | D5: =(B6-2*B5+B4)/G$5^2 -> 97.28196678 | E5: -49.53753618 | F5: delta x = | G5: =(Sheet1!D14-Sheet1!D13)/1001 -> 0.004995004995 | J5: =IF(AND(E5>G$7,E5<G$8),A5,Sheet1!$Q$22) -> -0.3 | K5: 1.339477765
A6: =A5+Sheet2!G$5 -> -2.99 | B6: 25.90207155 | C6: =(B7-B6)/Sheet2!$G$5 -> -72.29776931 | D6: 96.92382343 | E6: -49.38313787 | J6: =IF(AND(E6>G$7,E6<G$8),A6,Sheet1!$Q$22) -> -0.3 | K6: 1.339477765
A7: =A6+Sheet2!G$5 -> -2.98 | B7: 25.54094383 | C7: =(B8-B7)/Sheet2!$G$5 -> -71.81542027 | D7: 96.56627888 | E7: -49.22896252 | F7: fMin = | G7: =MIN(B3:B1003) -> -9.933650927 | J7: =IF(AND(E7>G$7,E7<G$8),A7,Sheet1!$Q$22) -> -0.3 | K7: 1.339477765
A8: =A7+Sheet2!G$5 -> -2.98 | B8: 25.18222544 | C8: =(B9-B8)/Sheet2!$G$5 -> -71.33485417 | D8: 96.20933312 | E8: -49.07501014 | F8: fMax = | G8: =MAX(B3:B1003) -> 27 | J8: =IF(AND(E8>G$7,E8<G$8),A8,Sheet1!$Q$22) -> -0.3 | K8: 1.339477765
A9: =A8+Sheet2!G$5 -> -2.97 | B9: 24.82590749 | C9: =(B10-B9)/Sheet2!$G$5 -> -70.85606802 | D9: 95.85298618 | E9: -48.92128072 | F9: x0 = | G9: =Sheet1!$Q$22 -> -0.3 | H9: x1= | I9: =G9+G5 -> -0.295004995 | J9: =IF(AND(E9>G$7,E9<G$8),A9,Sheet1!$Q$22) -> -0.3 | K9: 1.339477765
A10: =A9+Sheet2!G$5 -> -2.97 | B10: 24.47198108 | C10: =(B11-B10)/Sheet2!$G$5 -> -70.37905884 | D10: 95.49723803 | E10: -48.76777426 | F10: f(x0) = | G10: =LOOKUP(Sheet1!$Q$22,A3:A1002,B3:B1002) -> 1.339477765 | H10: x2= | I10: =I9+G5 -> -0.29000999 | J10: =IF(AND(E10>G$7,E10<G$8),A10,Sheet1!$Q$22) -> -0.3 | K10: 1.339477765
A11: =A10+Sheet2!G$5 -> -2.96 | B11: 24.12043733 | C11: =(B12-B11)/Sheet2!$G$5 -> -69.90382363 | D11: 95.14208868 | E11: -48.61449077 | F11: f '(x0) = | G11: =LOOKUP(Sheet1!$Q$22,A3:A1002,C3:C1002) -> 6.893774584 | J11: =IF(AND(E11>G$7,E11<G$8),A11,Sheet1!$Q$22) -> -0.3 | K11: 1.339477765
A12: =A11+Sheet2!G$5 -> -2.96 | B12: 23.77126738 | C12: =(B13-B12)/Sheet2!$G$5 -> -69.43035941 | D12: 94.78753814 | E12: -48.46143024 | F12: f "(x0) = | G12: =H16 -> -8.936430203 | J12: =IF(AND(E12>G$7,E12<G$8),A12,Sheet1!$Q$22) -> -0.3 | K12: 1.339477765
A13: =A12+Sheet2!G$5 -> -2.95 | B13: 23.42446239 | C13: =(B14-B13)/Sheet2!$G$5 -> -68.95866317 | D13: 94.43358639 | E13: -48.30859268 | J13: =IF(AND(E13>G$7,E13<G$8),A13,Sheet1!$Q$22) -> -0.3 | K13: 1.339477765
A14: =A13+Sheet2!G$5 -> -2.95 | B14: 23.08001352 | C14: =(B15-B14)/Sheet2!$G$5 -> -68.48873193 | D14: 94.08023345 | E14: -48.15597809 | J14: =IF(AND(E14>G$7,E14<G$8),A14,Sheet1!$Q$22) -> -0.3 | K14: 1.339477765
A15: =A14+Sheet2!G$5 -> -2.94 | B15: 22.73791196 | C15: =(B16-B15)/Sheet2!$G$5 -> -68.02056271 | D15: 93.72747931 | E15: -48.00358645 | G15: =LOOKUP(Sheet2!$I10,A3:A1002,B3:B1002) -> 1.408123677 | H15: =SUM(G15:G17) -> -0.0002229646029 | J15: =IF(AND(E15>G$7,E15<G$8),A15,Sheet1!$Q$22) -> -0.3 | K15: 1.339477765
A16: =A15+Sheet2!G$5 -> -2.94 | B16: 22.39814891 | C16: =(B17-B16)/Sheet2!$G$5 -> -67.5541525 | D16: 93.37532398 | E16: -47.85141779 | G16: =-2*(LOOKUP(Sheet2!$I9,A3:A1002,B3:B1002)) -> -2.747824407 | H16: =H15/G5^2 -> -8.936430203 | J16: =IF(AND(E16>G$7,E16<G$8),A16,Sheet1!$Q$22) -> -0.3 | K16: 1.339477765
A17: =A16+Sheet2!G$5 -> -2.93 | B17: 22.06071558 | C17: =(B18-B17)/Sheet2!$G$5 -> -67.08949831 | D17: 93.02376744 | E17: -47.69947208 | G17: =(LOOKUP(Sheet1!$Q$22,A3:A1002,B3:B1002)) -> 1.339477765 | J17: =IF(AND(E17>G$7,E17<G$8),A17,Sheet1!$Q$22) -> -0.3 | K17: 1.339477765
A18: =A17+Sheet2!G$5 -> -2.93 | B18: 21.7256032 | C18: =(B19-B18)/Sheet2!$G$5 -> -66.62659717 | D18: 92.67280971 | E18: -47.54774935 | J18: =IF(AND(E18>G$7,E18<G$8),A18,Sheet1!$Q$22) -> -0.3 | K18: 1.339477765
A19: =A18+Sheet2!G$5 -> -2.92 | B19: 21.39280302 | C19: =(B20-B19)/Sheet2!$G$5 -> -66.16544606 | D19: 92.32245078 | E19: -47.39624957 | J19: =IF(AND(E19>G$7,E19<G$8),A19,Sheet1!$Q$22) -> -0.3 | K19: 1.339477765
A20: =A19+Sheet2!G$5 -> -2.92 | B20: 21.06230628 | C20: =(B21-B20)/Sheet2!$G$5 -> -65.70604201 | D20: 91.97269065 | E20: -47.24497276 | J20: =IF(AND(E20>G$7,E20<G$8),A20,Sheet1!$Q$22) -> -0.3 | K20: 1.339477765
A21: =A20+Sheet2!G$5 -> -2.91 | B21: 20.73410428 | C21: =(B22-B21)/Sheet2!$G$5 -> -65.24838203 | D21: 91.62352932 | E21: -47.09391892 | J21: =IF(AND(E21>G$7,E21<G$8),A21,Sheet1!$Q$22) -> -0.3 | K21: 1.339477765
A22: =A21+Sheet2!G$5 -> -2.91 | B22: 20.40818828 | C22: =(B23-B22)/Sheet2!$G$5 -> -64.79246311 | D22: 91.27496679 | E22: -46.94308804 | J22: =IF(AND(E22>G$7,E22<G$8),A22,Sheet1!$Q$22) -> -0.3 | K22: 1.339477765
A23: =A22+Sheet2!G$5 -> -2.90 | B23: 20.0845496 | C23: =(B24-B23)/Sheet2!$G$5 -> -64.33828228 | D23: 90.92700307 | E23: -46.79248012 | J23: =IF(AND(E23>G$7,E23<G$8),A23,Sheet1!$Q$22) -> -0.3 | K23: 1.339477765
A24: =A23+Sheet2!G$5 -> -2.90 | B24: 19.76317956 | C24: =(B25-B24)/Sheet2!$G$5 -> -63.88583653 | D24: 90.57963814 | E24: -46.64209517 | J24: =IF(AND(E24>G$7,E24<G$8),A24,Sheet1!$Q$22) -> -0.3 | K24: 1.339477765
A25: =A24+Sheet2!G$5 -> -2.89 | B25: 19.44406949 | C25: =(B26-B25)/Sheet2!$G$5 -> -63.43512289 | D25: 90.23287202 | E25: -46.49193319 | J25: =IF(AND(E25>G$7,E25<G$8),A25,Sheet1!$Q$22) -> -0.3 | K25: 1.339477765
A26: =A25+Sheet2!G$5 -> -2.89 | B26: 19.12721073 | C26: =(B27-B26)/Sheet2!$G$5 -> -62.98613835 | D26: 89.8867047 | E26: -46.34199417 | J26: =IF(AND(E26>G$7,E26<G$8),A26,Sheet1!$Q$22) -> -0.3 | K26: 1.339477765
A27: =A26+Sheet2!G$5 -> -2.88 | B27: 18.81259466 | C27: =(B28-B27)/Sheet2!$G$5 -> -62.53887993 | D27: 89.54113619 | E27: -46.19227811 | J27: =IF(AND(E27>G$7,E27<G$8),A27,Sheet1!$Q$22) -> -0.3 | K27: 1.339477765
A28: =A27+Sheet2!G$5 -> -2.88 | B28: 18.50021264 | C28: =(B29-B28)/Sheet2!$G$5 -> -62.09334463 | D28: 89.19616647 | E28: -46.04278502 | J28: =IF(AND(E28>G$7,E28<G$8),A28,Sheet1!$Q$22) -> -0.3 | K28: 1.339477765
A29: =A28+Sheet2!G$5 -> -2.87 | B29: 18.19005608 | C29: =(B30-B29)/Sheet2!$G$5 -> -61.64952947 | D29: 88.85179556 | E29: -45.89351489 | J29: =IF(AND(E29>G$7,E29<G$8),A29,Sheet1!$Q$22) -> -0.3 | K29: 1.339477765
A30: =A29+Sheet2!G$5 -> -2.87 | B30: 17.88211637 | C30: =(B31-B30)/Sheet2!$G$5 -> -61.20743145 | D30: 88.50802345 | E30: -45.74446773 | J30: =IF(AND(E30>G$7,E30<G$8),A30,Sheet1!$Q$22) -> -0.3 | K30: 1.339477765
A31: =A30+Sheet2!G$5 -> -2.86 | B31: 17.57638494 | C31: =(B32-B31)/Sheet2!$G$5 -> -60.76704758 | D31: 88.16485013 | E31: -45.59564353 | J31: =IF(AND(E31>G$7,E31<G$8),A31,Sheet1!$Q$22) -> -0.3 | K31: 1.339477765
A32: =A31+Sheet2!G$5 -> -2.86 | B32: 17.27285324 | C32: =(B33-B32)/Sheet2!$G$5 -> -60.32837487 | D32: 87.82227563 | E32: -45.44704229 | J32: =IF(AND(E32>G$7,E32<G$8),A32,Sheet1!$Q$22) -> -0.3 | K32: 1.339477765
A33: =A32+Sheet2!G$5 -> -2.85 | B33: 16.9715127 | C33: =(B34-B33)/Sheet2!$G$5 -> -59.89141034 | D33: 87.48029992 | E33: -45.29866403 | J33: =IF(AND(E33>G$7,E33<G$8),A33,Sheet1!$Q$22) -> -0.3 | K33: 1.339477765
A34: =A33+Sheet2!G$5 -> -2.85 | B34: 16.67235481 | C34: =(B35-B34)/Sheet2!$G$5 -> -59.45615098 | D34: 87.13892302 | E34: -45.15050872 | J34: =IF(AND(E34>G$7,E34<G$8),A34,Sheet1!$Q$22) -> -0.3 | K34: 1.339477765
A35: =A34+Sheet2!G$5 -> -2.84 | B35: 16.37537104 | C35: =(B36-B35)/Sheet2!$G$5 -> -59.02259382 | D35: 86.79814491 | E35: -45.00257638 | J35: =IF(AND(E35>G$7,E35<G$8),A35,Sheet1!$Q$22) -> -0.3 | K35: 1.339477765
A36: =A35+Sheet2!G$5 -> -2.84 | B36: 16.08055289 | C36: =(B37-B36)/Sheet2!$G$5 -> -58.59073585 | D36: 86.45796561 | E36: -44.85486701 | J36: =IF(AND(E36>G$7,E36<G$8),A36,Sheet1!$Q$22) -> -0.3 | K36: 1.339477765
A37: =A36+Sheet2!G$5 -> -2.83 | B37: 15.78789187 | C37: =(B38-B37)/Sheet2!$G$5 -> -58.16057408 | D37: 86.11838511 | E37: -44.7073806 | J37: =IF(AND(E37>G$7,E37<G$8),A37,Sheet1!$Q$22) -> -0.3 | K37: 1.339477765
A38: =A37+Sheet2!G$5 -> -2.83 | B38: 15.49737951 | C38: =(B39-B38)/Sheet2!$G$5 -> -57.73210553 | D38: 85.77940341 | E38: -44.56011715 | J38: =IF(AND(E38>G$7,E38<G$8),A38,Sheet1!$Q$22) -> -0.3 | K38: 1.339477765
A39: =A38+Sheet2!G$5 -> -2.82 | B39: 15.20900735 | C39: =(B40-B39)/Sheet2!$G$5 -> -57.30532721 | D39: 85.44102052 | E39: -44.41307667 | J39: =IF(AND(E39>G$7,E39<G$8),A39,Sheet1!$Q$22) -> -0.3 | K39: 1.339477765
A40: =A39+Sheet2!G$5 -> -2.82 | B40: 14.92276696 | C40: =(B41-B40)/Sheet2!$G$5 -> -56.88023612 | D40: 85.10323642 | E40: -44.26625915 | J40: =IF(AND(E40>G$7,E40<G$8),A40,Sheet1!$Q$22) -> -0.3 | K40: 1.339477765
A41: =A40+Sheet2!G$5 -> -2.81 | B41: 14.63864989 | C41: =(B42-B41)/Sheet2!$G$5 -> -56.45682927 | D41: 84.76605113 | E41: -44.1196646 | J41: =IF(AND(E41>G$7,E41<G$8),A41,Sheet1!$Q$22) -> -0.3 | K41: 1.339477765
A42: =A41+Sheet2!G$5 -> -2.81 | B42: 14.35664775 | C42: =(B43-B42)/Sheet2!$G$5 -> -56.03510367 | D42: 84.42946464 | E42: -43.97329301 | J42: =IF(AND(E42>G$7,E42<G$8),A42,Sheet1!$Q$22) -> -0.3 | K42: 1.339477765
A43: =A42+Sheet2!G$5 -> -2.80 | B43: 14.07675213 | C43: =(B44-B43)/Sheet2!$G$5 -> -55.61505633 | D43: 84.09347695 | E43: -43.82714439 | J43: =IF(AND(E43>G$7,E43<G$8),A43,Sheet1!$Q$22) -> -0.3 | K43: 1.339477765
A44: =A43+Sheet2!G$5 -> -2.80 | B44: 13.79895464 | C44: =(B45-B44)/Sheet2!$G$5 -> -55.19668427 | D44: 83.75808807 | E44: -43.68121873 | J44: =IF(AND(E44>G$7,E44<G$8),A44,Sheet1!$Q$22) -> -0.3 | K44: 1.339477765
A45: =A44+Sheet2!G$5 -> -2.79 | B45: 13.52324693 | C45: =(B46-B45)/Sheet2!$G$5 -> -54.77998448 | D45: 83.42329798 | E45: -43.53551603 | J45: =IF(AND(E45>G$7,E45<G$8),A45,Sheet1!$Q$22) -> -0.3 | K45: 1.339477765
A46: =A45+Sheet2!G$5 -> -2.79 | B46: 13.24962063 | C46: =(B47-B46)/Sheet2!$G$5 -> -54.36495397 | D46: 83.0891067 | E46: -43.39003631 | J46: =IF(AND(E46>G$7,E46<G$8),A46,Sheet1!$Q$22) -> -0.3 | K46: 1.339477765
A47: =A46+Sheet2!G$5 -> -2.78 | B47: 12.97806742 | C47: =(B48-B47)/Sheet2!$G$5 -> -53.95158977 | D47: 82.75551422 | E47: -43.24477954 | J47: =IF(AND(E47>G$7,E47<G$8),A47,Sheet1!$Q$22) -> -0.3 | K47: 1.339477765
A48: =A47+Sheet2!G$5 -> -2.78 | B48: 12.70857896 | C48: =(B49-B48)/Sheet2!$G$5 -> -53.53988886 | D48: 82.42252054 | E48: -43.09974574 | J48: =IF(AND(E48>G$7,E48<G$8),A48,Sheet1!$Q$22) -> -0.3 | K48: 1.339477765
A49: =A48+Sheet2!G$5 -> -2.77 | B49: 12.44114694 | C49: =(B50-B49)/Sheet2!$G$5 -> -53.12984828 | D49: 82.09012566 | E49: -42.95493491 | J49: =IF(AND(E49>G$7,E49<G$8),A49,Sheet1!$Q$22) -> -0.3 | K49: 1.339477765
A50: =A49+Sheet2!G$5 -> -2.77 | B50: 12.17576309 | C50: =(B51-B50)/Sheet2!$G$5 -> -52.72146501 | D50: 81.75832958 | E50: -42.81034703 | J50: =IF(AND(E50>G$7,E50<G$8),A50,Sheet1!$Q$22) -> -0.3 | K50: 1.339477765
A51: =A50+Sheet2!G$5 -> -2.76 | B51: 11.91241911 | C51: =(B52-B51)/Sheet2!$G$5 -> -52.31473608 | D51: 81.42713231 | E51: -42.66598213 | J51: =IF(AND(E51>G$7,E51<G$8),A51,Sheet1!$Q$22) -> -0.3 | K51: 1.339477765
A52: =A51+Sheet2!G$5 -> -2.76 | B52: 11.65110674 | C52: =(B53-B52)/Sheet2!$G$5 -> -51.90965849 | D52: 81.09653384 | E52: -42.52184019 | J52: =IF(AND(E52>G$7,E52<G$8),A52,Sheet1!$Q$22) -> -0.3 | K52: 1.339477765
A53: =A52+Sheet2!G$5 -> -2.75 | B53: 11.39181773 | C53: =(B54-B53)/Sheet2!$G$5 -> -51.50622925 | D53: 80.76653416 | E53: -42.37792121 | J53: =IF(AND(E53>G$7,E53<G$8),A53,Sheet1!$Q$22) -> -0.3 | K53: 1.339477765
A54: =A53+Sheet2!G$5 -> -2.75 | B54: 11.13454386 | C54: =(B55-B54)/Sheet2!$G$5 -> -51.10444536 | D54: 80.4371333 | E54: -42.2342252 | J54: =IF(AND(E54>G$7,E54<G$8),A54,Sheet1!$Q$22) -> -0.3 | K54: 1.339477765
A55: =A54+Sheet2!G$5 -> -2.74 | B55: 10.8792769 | C55: =(B56-B55)/Sheet2!$G$5 -> -50.70430385 | D55: 80.10833123 | E55: -42.09075215 | J55: =IF(AND(E55>G$7,E55<G$8),A55,Sheet1!$Q$22) -> -0.3 | K55: 1.339477765
A56: =A55+Sheet2!G$5 -> -2.74 | B56: 10.62600865 | C56: =(B57-B56)/Sheet2!$G$5 -> -50.30580171 | D56: 79.78012796 | E56: -41.94750207 | J56: =IF(AND(E56>G$7,E56<G$8),A56,Sheet1!$Q$22) -> -0.3 | K56: 1.339477765
A57: =A56+Sheet2!G$5 -> -2.73 | B57: 10.37473092 | C57: =(B58-B57)/Sheet2!$G$5 -> -49.90893596 | D57: 79.4525235 | E57: -41.80447495 | J57: =IF(AND(E57>G$7,E57<G$8),A57,Sheet1!$Q$22) -> -0.3 | K57: 1.339477765
A58: =A57+Sheet2!G$5 -> -2.73 | B58: 10.12543554 | C58: =(B59-B58)/Sheet2!$G$5 -> -49.5137036 | D58: 79.12551784 | E58: -41.66167079 | J58: =IF(AND(E58>G$7,E58<G$8),A58,Sheet1!$Q$22) -> -0.3 | K58: 1.339477765
A59: =A58+Sheet2!G$5 -> -2.72 | B59: 9.878114339 | C59: =(B60-B59)/Sheet2!$G$5 -> -49.12010165 | D59: 78.79911098 | E59: -41.5190896 | J59: =IF(AND(E59>G$7,E59<G$8),A59,Sheet1!$Q$22) -> -0.3 | K59: 1.339477765
A60: =A59+Sheet2!G$5 -> -2.72 | B60: 9.632759186 | C60: =(B61-B60)/Sheet2!$G$5 -> -48.72812711 | D60: 78.47330292 | E60: -41.37673138 | J60: =IF(AND(E60>G$7,E60<G$8),A60,Sheet1!$Q$22) -> -0.3 | K60: 1.339477765
A61: =A60+Sheet2!G$5 -> -2.71 | B61: 9.389361948 | C61: =(B62-B61)/Sheet2!$G$5 -> -48.33777699 | D61: 78.14809366 | E61: -41.23459612 | J61: =IF(AND(E61>G$7,E61<G$8),A61,Sheet1!$Q$22) -> -0.3 | K61: 1.339477765
A62: =A61+Sheet2!G$5 -> -2.71 | B62: 9.14791451 | C62: =(B63-B62)/Sheet2!$G$5 -> -47.9490483 | D62: 77.82348321 | E62: -41.09268382 | J62: =IF(AND(E62>G$7,E62<G$8),A62,Sheet1!$Q$22) -> -0.3 | K62: 1.339477765
A63: =A62+Sheet2!G$5 -> -2.70 | B63: 8.908408775 | C63: =(B64-B63)/Sheet2!$G$5 -> -47.56193806 | D63: 77.49947156 | E63: -40.95099449 | J63: =IF(AND(E63>G$7,E63<G$8),A63,Sheet1!$Q$22) -> -0.3 | K63: 1.339477765
A64: =A63+Sheet2!G$5 -> -2.70 | B64: 8.670836656 | C64: =(B65-B64)/Sheet2!$G$5 -> -47.17644326 | D64: 77.17605871 | E64: -40.80952812 | J64: =IF(AND(E64>G$7,E64<G$8),A64,Sheet1!$Q$22) -> -0.3 | K64: 1.339477765
A65: =A64+Sheet2!G$5 -> -2.69 | B65: 8.435190087 | C65: =(B66-B65)/Sheet2!$G$5 -> -46.79256092 | D65: 76.85324466 | E65: -40.66828472 | J65: =IF(AND(E65>G$7,E65<G$8),A65,Sheet1!$Q$22) -> -0.3 | K65: 1.339477765
A66: =A65+Sheet2!G$5 -> -2.69 | B66: 8.201461011 | C66: =(B67-B66)/Sheet2!$G$5 -> -46.41028804 | D66: 76.53102941 | E66: -40.52726429 | J66: =IF(AND(E66>G$7,E66<G$8),A66,Sheet1!$Q$22) -> -0.3 | K66: 1.339477765
A67: =A66+Sheet2!G$5 -> -2.68 | B67: =x^4-5*x^2+4*x+3 -> 7.969641391 | C67: =(B68-B67)/Sheet2!$G$5 -> -46.02962164 | D67: 76.20941296 | E67: -40.38646681 | J67: =IF(AND(E67>G$7,E67<G$8),A67,Sheet1!$Q$22) -> -0.3 | K67: 1.339477765
A68: =A67+Sheet2!G$5 -> -2.68 | B68: 7.739723201 | C68: =(B69-B68)/Sheet2!$G$5 -> -45.65055873 | D68: 75.88839532 | E68: =G$10+G$11*(A68-G$9)+G$12*(A68-G$9)^2/2 -> -40.24589231 | J68: =IF(AND(E68>G$7,E68<G$8),A68,Sheet1!$Q$22) -> -0.3 | K68: =IF(AND(E68>G$7,E68<G$8),E68,G$10) -> 1.339477765
A69: =A68+Sheet2!G$5 -> -2.67 | B69: 7.511698432 | C69: =(B70-B69)/Sheet2!$G$5 -> -45.27309631 | D69: =(B70-2*B69+B68)/G$5^2 -> 75.56797648 | E69: -40.10554076 | J69: =IF(AND(E69>G$7,E69<G$8),A69,Sheet1!$Q$22) -> -0.3 | K69: 1.339477765
A70: =A69+Sheet2!G$5 -> -2.67 | B70: 7.28555909 | C70: =(B71-B70)/Sheet2!$G$5 -> -44.89723139 | D70: 75.24815644 | E70: -39.96541218 | J70: =IF(AND(E70>G$7,E70<G$8),A70,Sheet1!$Q$22) -> -0.3 | K70: 1.339477765
A71: =A70+Sheet2!G$5 -> -2.66 | B71: 7.061297194 | C71: =(B72-B71)/Sheet2!$G$5 -> -44.52296099 | D71: 74.9289352 | E71: -39.82550657 | J71: =IF(AND(E71>G$7,E71<G$8),A71,Sheet1!$Q$22) -> -0.3 | K71: 1.339477765
A72: =A71+Sheet2!G$5 -> -2.66 | B72: 6.838904782 | C72: =(B73-B72)/Sheet2!$G$5 -> -44.1502821 | D72: 74.61031276 | E72: -39.68582392 | J72: =IF(AND(E72>G$7,E72<G$8),A72,Sheet1!$Q$22) -> -0.3 | K72: 1.339477765
A73: =A72+Sheet2!G$5 -> -2.65 | B73: 6.618373902 | C73: =(B74-B73)/Sheet2!$G$5 -> -43.77919175 | D73: 74.29228913 | E73: -39.54636423 | J73: =IF(AND(E73>G$7,E73<G$8),A73,Sheet1!$Q$22) -> -0.3 | K73: 1.339477765
A74: =A73+Sheet2!G$5 -> -2.65 | B74: 6.399696621 | C74: =(B75-B74)/Sheet2!$G$5 -> -43.40968693 | D74: 73.9748643 | E74: -39.40712751 | J74: =IF(AND(E74>G$7,E74<G$8),A74,Sheet1!$Q$22) -> -0.3 | K74: 1.339477765
A75: =A74+Sheet2!G$5 -> -2.64 | B75: 6.182865018 | C75: =(B76-B75)/Sheet2!$G$5 -> -43.04176466 | D75: 73.65803827 | E75: -39.26811376 | J75: =IF(AND(E75>G$7,E75<G$8),A75,Sheet1!$Q$22) -> -0.3 | K75: 1.339477765
A76: =A75+Sheet2!G$5 -> -2.64 | B76: 5.967871188 | C76: =(B77-B76)/Sheet2!$G$5 -> -42.67542195 | D76: 73.34181104 | E76: -39.12932297 | J76: =IF(AND(E76>G$7,E76<G$8),A76,Sheet1!$Q$22) -> -0.3 | K76: 1.339477765
A77: =A76+Sheet2!G$5 -> -2.63 | B77: 5.754707243 | C77: =(B78-B77)/Sheet2!$G$5 -> -42.3106558 | D77: 73.02618261 | E77: -38.99075514 | J77: =IF(AND(E77>G$7,E77<G$8),A77,Sheet1!$Q$22) -> -0.3 | K77: 1.339477765
A78: =A77+Sheet2!G$5 -> -2.63 | B78: 5.543365305 | C78: =(B79-B78)/Sheet2!$G$5 -> -41.94746323 | D78: 72.71115298 | E78: -38.85241028 | J78: =IF(AND(E78>G$7,E78<G$8),A78,Sheet1!$Q$22) -> -0.3 | K78: 1.339477765
A79: =A78+Sheet2!G$5 -> -2.62 | B79: 5.333837517 | C79: =(B80-B79)/Sheet2!$G$5 -> -41.58584124 | D79: 72.39672216 | E79: -38.71428838 | J79: =IF(AND(E79>G$7,E79<G$8),A79,Sheet1!$Q$22) -> -0.3 | K79: 1.339477765
A80: =A79+Sheet2!G$5 -> -2.62 | B80: 5.126116032 | C80: =(B81-B80)/Sheet2!$G$5 -> -41.22578684 | D80: 72.08289014 | E80: -38.57638945 | J80: =IF(AND(E80>G$7,E80<G$8),A80,Sheet1!$Q$22) -> -0.3 | K80: 1.339477765
A81: =A80+Sheet2!G$5 -> -2.61 | B81: 4.920193021 | C81: =(B82-B81)/Sheet2!$G$5 -> -40.86729705 | D81: 71.76965692 | E81: -38.43871348 | J81: =IF(AND(E81>G$7,E81<G$8),A81,Sheet1!$Q$22) -> -0.3 | K81: 1.339477765
A82: =A81+Sheet2!G$5 -> -2.61 | B82: 4.716060668 | C82: =(B83-B82)/Sheet2!$G$5 -> -40.51036887 | D82: 71.4570225 | E82: -38.30126048 | J82: =IF(AND(E82>G$7,E82<G$8),A82,Sheet1!$Q$22) -> -0.3 | K82: 1.339477765
A83: =A82+Sheet2!G$5 -> -2.60 | B83: 4.513711173 | C83: =(B84-B83)/Sheet2!$G$5 -> -40.1549993 | D83: 71.14498688 | E83: -38.16403044 | J83: =IF(AND(E83>G$7,E83<G$8),A83,Sheet1!$Q$22) -> -0.3 | K83: 1.339477765
A84: =A83+Sheet2!G$5 -> -2.60 | B84: 4.313136751 | C84: =(B85-B84)/Sheet2!$G$5 -> -39.80118536 | D84: 70.83355007 | E84: -38.02702336 | J84: =IF(AND(E84>G$7,E84<G$8),A84,Sheet1!$Q$22) -> -0.3 | K84: 1.339477765
A85: =A84+Sheet2!G$5 -> -2.59 | B85: 4.114329632 | C85: =(B86-B85)/Sheet2!$G$5 -> -39.44892407 | D85: 70.52271205 | E85: -37.89023925 | J85: =IF(AND(E85>G$7,E85<G$8),A85,Sheet1!$Q$22) -> -0.3 | K85: 1.339477765
A86: =A85+Sheet2!G$5 -> -2.59 | B86: 3.917282059 | C86: =(B87-B86)/Sheet2!$G$5 -> -39.09821241 | D86: 70.21247284 | E86: -37.75367811 | J86: =IF(AND(E86>G$7,E86<G$8),A86,Sheet1!$Q$22) -> -0.3 | K86: 1.339477765
A87: =A86+Sheet2!G$5 -> -2.58 | B87: 3.721986293 | C87: =(B88-B87)/Sheet2!$G$5 -> -38.74904742 | D87: 69.90283243 | E87: -37.61733993 | J87: =IF(AND(E87>G$7,E87<G$8),A87,Sheet1!$Q$22) -> -0.3 | K87: 1.339477765
A88: =A87+Sheet2!G$5 -> -2.58 | B88: 3.528434607 | C88: =(B89-B88)/Sheet2!$G$5 -> -38.40142608 | D88: 69.59379082 | E88: -37.48122471 | J88: =IF(AND(E88>G$7,E88<G$8),A88,Sheet1!$Q$22) -> -0.3 | K88: 1.339477765
A89: =A88+Sheet2!G$5 -> -2.57 | B89: 3.336619292 | C89: =(B90-B89)/Sheet2!$G$5 -> -38.05534542 | D89: 69.28534802 | E89: -37.34533246 | J89: =IF(AND(E89>G$7,E89<G$8),A89,Sheet1!$Q$22) -> -0.3 | K89: 1.339477765
A90: =A89+Sheet2!G$5 -> -2.57 | B90: 3.146532652 | C90: =(B91-B90)/Sheet2!$G$5 -> -37.71080245 | D90: 68.97750401 | E90: -37.20966317 | J90: =IF(AND(E90>G$7,E90<G$8),A90,Sheet1!$Q$22) -> -0.3 | K90: 1.339477765
A91: =A90+Sheet2!G$5 -> -2.56 | B91: 2.958167005 | C91: =(B92-B91)/Sheet2!$G$5 -> -37.36779416 | D91: 68.67025881 | E91: -37.07421685 | J91: =IF(AND(E91>G$7,E91<G$8),A91,Sheet1!$Q$22) -> -0.3 | K91: 1.339477765
A92: =A91+Sheet2!G$5 -> -2.56 | B92: 2.771514687 | C92: =(B93-B92)/Sheet2!$G$5 -> -37.02631758 | D92: 68.36361241 | E92: -36.93899349 | J92: =IF(AND(E92>G$7,E92<G$8),A92,Sheet1!$Q$22) -> -0.3 | K92: 1.339477765
A93: =A92+Sheet2!G$5 -> -2.55 | B93: 2.586568045 | C93: =(B94-B93)/Sheet2!$G$5 -> -36.6863697 | D93: 68.05756481 | E93: -36.8039931 | J93: =IF(AND(E93>G$7,E93<G$8),A93,Sheet1!$Q$22) -> -0.3 | K93: 1.339477765
A94: =A93+Sheet2!G$5 -> -2.55 | B94: 2.403319445 | C94: =(B95-B94)/Sheet2!$G$5 -> -36.34794754 | D94: 67.75211602 | E94: -36.66921567 | J94: =IF(AND(E94>G$7,E94<G$8),A94,Sheet1!$Q$22) -> -0.3 | K94: 1.339477765
A95: =A94+Sheet2!G$5 -> -2.54 | B95: 2.221761266 | C95: =(B96-B95)/Sheet2!$G$5 -> -36.01104811 | D95: 67.44726602 | E95: -36.53466121 | J95: =IF(AND(E95>G$7,E95<G$8),A95,Sheet1!$Q$22) -> -0.3 | K95: 1.339477765
A96: =A95+Sheet2!G$5 -> -2.54 | B96: 2.041885901 | C96: =(B97-B96)/Sheet2!$G$5 -> -35.67566842 | D96: 67.14301483 | E96: -36.40032971 | J96: =IF(AND(E96>G$7,E96<G$8),A96,Sheet1!$Q$22) -> -0.3 | K96: 1.339477765
A97: =A96+Sheet2!G$5 -> -2.53 | B97: 1.863685759 | C97: =(B98-B97)/Sheet2!$G$5 -> -35.34180547 | D97: 66.83936244 | E97: -36.26622117 | J97: =IF(AND(E97>G$7,E97<G$8),A97,Sheet1!$Q$22) -> -0.3 | K97: 1.339477765
A98: =A97+Sheet2!G$5 -> -2.53 | B98: 1.687153264 | C98: =(B99-B98)/Sheet2!$G$5 -> -35.00945627 | D98: 66.53630885 | E98: -36.1323356 | J98: =IF(AND(E98>G$7,E98<G$8),A98,Sheet1!$Q$22) -> -0.3 | K98: 1.339477765
A99: =A98+Sheet2!G$5 -> -2.52 | B99: 1.512280855 | C99: =(B100-B99)/Sheet2!$G$5 -> -34.67861784 | D99: 66.23385406 | E99: -35.998673 | J99: =IF(AND(E99>G$7,E99<G$8),A99,Sheet1!$Q$22) -> -0.3 | K99: 1.339477765
A100: =A99+Sheet2!G$5 -> -2.52 | B100: 1.339060986 | C100: =(B101-B100)/Sheet2!$G$5 -> -34.34928718 | D100: 65.93199807 | E100: -35.86523336 | J100: =IF(AND(E100>G$7,E100<G$8),A100,Sheet1!$Q$22) -> -0.3 | K100: 1.339477765
A101: =A100+Sheet2!G$5 -> -2.51 | B101: 1.167486125 | C101: =(B102-B101)/Sheet2!$G$5 -> -34.0214613 | D101: 65.63074089 | E101: -35.73201668 | J101: =IF(AND(E101>G$7,E101<G$8),A101,Sheet1!$Q$22) -> -0.3 | K101: 1.339477765
A102: =A101+Sheet2!G$5 -> -2.51 | B102: 0.9975487554 | C102: =(B103-B102)/Sheet2!$G$5 -> -33.69513721 | D102: 65.3300825 | E102: -35.59902297 | J102: =IF(AND(E102>G$7,E102<G$8),A102,Sheet1!$Q$22) -> -0.3 | K102: 1.339477765
A103: =A102+Sheet2!G$5 -> -2.50 | B103: 0.8292413768 | C103: =(B104-B103)/Sheet2!$G$5 -> -33.37031192 | D103: 65.03002292 | E103: -35.46625222 | J103: =IF(AND(E103>G$7,E103<G$8),A103,Sheet1!$Q$22) -> -0.3 | K103: 1.339477765
A104: =A103+Sheet2!G$5 -> -2.50 | B104: 0.662556502 | C104: =(B105-B104)/Sheet2!$G$5 -> -33.04698244 | D104: 64.73056215 | E104: -35.33370444 | J104: =IF(AND(E104>G$7,E104<G$8),A104,Sheet1!$Q$22) -> -0.3 | K104: 1.339477765
A105: =A104+Sheet2!G$5 -> -2.49 | B105: 0.4974866596 | C105: =(B106-B105)/Sheet2!$G$5 -> -32.72514578 | D105: 64.43170017 | E105: -35.20137962 | J105: =IF(AND(E105>G$7,E105<G$8),A105,Sheet1!$Q$22) -> -0.3 | K105: 1.339477765
A106: =A105+Sheet2!G$5 -> -2.49 | B106: 0.334024393 | C106: =(B107-B106)/Sheet2!$G$5 -> -32.40479894 | D106: 64.13343699 | E106: -35.06927777 | J106: =IF(AND(E106>G$7,E106<G$8),A106,Sheet1!$Q$22) -> -0.3 | K106: 1.339477765
A107: =A106+Sheet2!G$5 -> -2.48 | B107: 0.1721622604 | C107: =(B108-B107)/Sheet2!$G$5 -> -32.08593894 | D107: 63.83577262 | E107: -34.93739888 | J107: =IF(AND(E107>G$7,E107<G$8),A107,Sheet1!$Q$22) -> -0.3 | K107: 1.339477765
A108: =A107+Sheet2!G$5 -> -2.48 | B108: 0.01189283518 | C108: =(B109-B108)/Sheet2!$G$5 -> -31.76856278 | D108: 63.53870705 | E108: -34.80574296 | J108: =IF(AND(E108>G$7,E108<G$8),A108,Sheet1!$Q$22) -> -0.3 | K108: 1.339477765
A109: =A108+Sheet2!G$5 -> -2.47 | B109: -0.1467912946 | C109: =(B110-B109)/Sheet2!$G$5 -> -31.45266747 | D109: 63.24224028 | E109: -34.67431 | J109: =IF(AND(E109>G$7,E109<G$8),A109,Sheet1!$Q$22) -> -0.3 | K109: 1.339477765
A110: =A109+Sheet2!G$5 -> -2.47 | B110: -0.3038975257 | C110: =(B111-B110)/Sheet2!$G$5 -> -31.13825003 | D110: 62.94637231 | E110: -34.5431 | J110: =IF(AND(E110>G$7,E110<G$8),A110,Sheet1!$Q$22) -> -0.3 | K110: 1.339477765
A111: =A110+Sheet2!G$5 -> -2.46 | B111: -0.4594332401 | C111: =(B112-B111)/Sheet2!$G$5 -> -30.82530745 | D111: 62.65110314 | E111: -34.41211297 | J111: =IF(AND(E111>G$7,E111<G$8),A111,Sheet1!$Q$22) -> -0.3 | K111: 1.339477765
A112: =A111+Sheet2!G$5 -> -2.46 | B112: -0.6134058048 | C112: =(B113-B112)/Sheet2!$G$5 -> -30.51383676 | D112: 62.35643278 | E112: -34.28134891 | J112: =IF(AND(E112>G$7,E112<G$8),A112,Sheet1!$Q$22) -> -0.3 | K112: 1.339477765
A113: =A112+Sheet2!G$5 -> -2.45 | B113: -0.7658225719 | C113: =(B114-B113)/Sheet2!$G$5 -> -30.20383496 | D113: 62.06236122 | E113: -34.15080781 | J113: =IF(AND(E113>G$7,E113<G$8),A113,Sheet1!$Q$22) -> -0.3 | K113: 1.339477765
A114: =A113+Sheet2!G$5 -> -2.45 | B114: -0.9166908784 | C114: =(B115-B114)/Sheet2!$G$5 -> -29.89529905 | D114: 61.76888845 | E114: -34.02048967 | J114: =IF(AND(E114>G$7,E114<G$8),A114,Sheet1!$Q$22) -> -0.3 | K114: 1.339477765
A115: =A114+Sheet2!G$5 -> -2.44 | B115: -1.066018046 | C115: =(B116-B115)/Sheet2!$G$5 -> -29.58822605 | D115: 61.4760145 | E115: -33.8903945 | J115: =IF(AND(E115>G$7,E115<G$8),A115,Sheet1!$Q$22) -> -0.3 | K115: 1.339477765
A116: =A115+Sheet2!G$5 -> -2.44 | B116: -1.213811383 | C116: =(B117-B116)/Sheet2!$G$5 -> -29.28261297 | D116: 61.18373934 | E116: -33.76052229 | J116: =IF(AND(E116>G$7,E116<G$8),A116,Sheet1!$Q$22) -> -0.3 | K116: 1.339477765
A117: =A116+Sheet2!G$5 -> -2.43 | B117: -1.360078181 | C117: =(B118-B117)/Sheet2!$G$5 -> -28.97845681 | D117: 60.89206298 | E117: -33.63087305 | J117: =IF(AND(E117>G$7,E117<G$8),A117,Sheet1!$Q$22) -> -0.3 | K117: 1.339477765
A118: =A117+Sheet2!G$5 -> -2.43 | B118: -1.504825718 | C118: =(B119-B118)/Sheet2!$G$5 -> -28.67575458 | D118: 60.60098543 | E118: -33.50144677 | J118: =IF(AND(E118>G$7,E118<G$8),A118,Sheet1!$Q$22) -> -0.3 | K118: 1.339477765
A119: =A118+Sheet2!G$5 -> -2.42 | B119: -1.648061255 | C119: =(B120-B119)/Sheet2!$G$5 -> -28.3745033 | D119: 60.31050668 | E119: -33.37224346 | J119: =IF(AND(E119>G$7,E119<G$8),A119,Sheet1!$Q$22) -> -0.3 | K119: 1.339477765
A120: =A119+Sheet2!G$5 -> -2.42 | B120: -1.789792041 | C120: =(B121-B120)/Sheet2!$G$5 -> -28.07469997 | D120: 60.02062673 | E120: -33.24326311 | J120: =IF(AND(E120>G$7,E120<G$8),A120,Sheet1!$Q$22) -> -0.3 | K120: 1.339477765
A121: =A120+Sheet2!G$5 -> -2.41 | B121: -1.930025308 | C121: =(B122-B121)/Sheet2!$G$5 -> -27.7763416 | D121: 59.73134558 | E121: -33.11450573 | J121: =IF(AND(E121>G$7,E121<G$8),A121,Sheet1!$Q$22) -> -0.3 | K121: 1.339477765
A122: =A121+Sheet2!G$5 -> -2.41 | B122: -2.068768273 | C122: =(B123-B122)/Sheet2!$G$5 -> -27.4794252 | D122: 59.44266323 | E122: -32.98597131 | J122: =IF(AND(E122>G$7,E122<G$8),A122,Sheet1!$Q$22) -> -0.3 | K122: 1.339477765
A123: =A122+Sheet2!G$5 -> -2.40 | B123: -2.206028139 | C123: =(B124-B123)/Sheet2!$G$5 -> -27.18394778 | D123: 59.15457969 | E123: -32.85765985 | J123: =IF(AND(E123>G$7,E123<G$8),A123,Sheet1!$Q$22) -> -0.3 | K123: 1.339477765
A124: =A123+Sheet2!G$5 -> -2.40 | B124: -2.341812094 | C124: =(B125-B124)/Sheet2!$G$5 -> -26.88990635 | D124: 58.86709494 | E124: -32.72957136 | J124: =IF(AND(E124>G$7,E124<G$8),A124,Sheet1!$Q$22) -> -0.3 | K124: 1.339477765
A125: =A124+Sheet2!G$5 -> -2.39 | B125: -2.47612731 | C125: =(B126-B125)/Sheet2!$G$5 -> -26.59729791 | D125: 58.580209 | E125: -32.60170583 | J125: =IF(AND(E125>G$7,E125<G$8),A125,Sheet1!$Q$22) -> -0.3 | K125: 1.339477765
A126: =A125+Sheet2!G$5 -> -2.39 | B126: -2.608980946 | C126: =(B127-B126)/Sheet2!$G$5 -> -26.30611948 | D126: 58.29392186 | E126: -32.47406327 | J126: =IF(AND(E126>G$7,E126<G$8),A126,Sheet1!$Q$22) -> -0.3 | K126: 1.339477765
A127: =A126+Sheet2!G$5 -> -2.38 | B127: -2.740380144 | C127: =(B128-B127)/Sheet2!$G$5 -> -26.01636806 | D127: 58.00823352 | E127: -32.34664368 | J127: =IF(AND(E127>G$7,E127<G$8),A127,Sheet1!$Q$22) -> -0.3 | K127: 1.339477765
A128: =A127+Sheet2!G$5 -> -2.38 | B128: -2.870332033 | C128: =(B129-B128)/Sheet2!$G$5 -> -25.72804067 | D128: 57.72314399 | E128: -32.21944705 | J128: =IF(AND(E128>G$7,E128<G$8),A128,Sheet1!$Q$22) -> -0.3 | K128: 1.339477765
A129: =A128+Sheet2!G$5 -> -2.37 | B129: -2.998843725 | C129: =(B130-B129)/Sheet2!$G$5 -> -25.44113431 | D129: 57.43865325 | E129: -32.09247338 | J129: =IF(AND(E129>G$7,E129<G$8),A129,Sheet1!$Q$22) -> -0.3 | K129: 1.339477765
A130: =A129+Sheet2!G$5 -> -2.37 | B130: -3.125922318 | C130: =(B131-B130)/Sheet2!$G$5 -> -25.15564599 | D130: 57.15476132 | E130: -31.96572268 | J130: =IF(AND(E130>G$7,E130<G$8),A130,Sheet1!$Q$22) -> -0.3 | K130: 1.339477765
A131: =A130+Sheet2!G$5 -> -2.36 | B131: =x^4-5*x^2+4*x+3 -> -3.251574895 | C131: =(B132-B131)/Sheet2!$G$5 -> -24.87157273 | D131: 56.87146819 | E131: -31.83919494 | J131: =IF(AND(E131>G$7,E131<G$8),A131,Sheet1!$Q$22) -> -0.3 | K131: 1.339477765
A132: =A131+Sheet2!G$5 -> -2.36 | B132: -3.375808525 | C132: =(B133-B132)/Sheet2!$G$5 -> -24.58891152 | D132: 56.58877386 | E132: =G$10+G$11*(A132-G$9)+G$12*(A132-G$9)^2/2 -> -31.71289016 | J132: =IF(AND(E132>G$7,E132<G$8),A132,Sheet1!$Q$22) -> -0.3 | K132: =IF(AND(E132>G$7,E132<G$8),E132,G$10) -> 1.339477765
A133: =A132+Sheet2!G$5 -> -2.35 | B133: -3.498630261 | C133: =(B134-B133)/Sheet2!$G$5 -> -24.30765938 | D133: =(B134-2*B133+B132)/G$5^2 -> 56.30667834 | E133: -31.58680836 | J133: =IF(AND(E133>G$7,E133<G$8),A133,Sheet1!$Q$22) -> -0.3 | K133: 1.339477765
A134: =A133+Sheet2!G$5 -> -2.35 | B134: -3.620047141 | C134: =(B135-B134)/Sheet2!$G$5 -> -24.02781332 | D134: 56.02518161 | E134: -31.46094951 | J134: =IF(AND(E134>G$7,E134<G$8),A134,Sheet1!$Q$22) -> -0.3 | K134: 1.339477765
A135: =A134+Sheet2!G$5 -> -2.34 | B135: -3.740066188 | C135: =(B136-B135)/Sheet2!$G$5 -> -23.74937034 | D135: 55.74428369 | E135: -31.33531363 | J135: =IF(AND(E135>G$7,E135<G$8),A135,Sheet1!$Q$22) -> -0.3 | K135: 1.339477765
A136: =A135+Sheet2!G$5 -> -2.34 | B136: -3.858694412 | C136: =(B137-B136)/Sheet2!$G$5 -> -23.47232746 | D136: 55.46398457 | E136: -31.20990072 | J136: =IF(AND(E136>G$7,E136<G$8),A136,Sheet1!$Q$22) -> -0.3 | K136: 1.339477765
A137: =A136+Sheet2!G$5 -> -2.33 | B137: -3.975938805 | C137: =(B138-B137)/Sheet2!$G$5 -> -23.19668169 | D137: 55.18428425 | E137: -31.08471077 | J137: =IF(AND(E137>G$7,E137<G$8),A137,Sheet1!$Q$22) -> -0.3 | K137: 1.339477765
A138: =A137+Sheet2!G$5 -> -2.33 | B138: -4.091806346 | C138: =(B139-B138)/Sheet2!$G$5 -> -22.92243002 | D138: 54.90518273 | E138: -30.95974378 | J138: =IF(AND(E138>G$7,E138<G$8),A138,Sheet1!$Q$22) -> -0.3 | K138: 1.339477765
A139: =A138+Sheet2!G$5 -> -2.32 | B139: -4.206303998 | C139: =(B140-B139)/Sheet2!$G$5 -> -22.64956948 | D139: 54.62668001 | E139: -30.83499976 | J139: =IF(AND(E139>G$7,E139<G$8),A139,Sheet1!$Q$22) -> -0.3 | K139: 1.339477765
A140: =A139+Sheet2!G$5 -> -2.32 | B140: -4.319438711 | C140: =(B141-B140)/Sheet2!$G$5 -> -22.37809708 | D140: 54.3487761 | E140: -30.7104787 | J140: =IF(AND(E140>G$7,E140<G$8),A140,Sheet1!$Q$22) -> -0.3 | K140: 1.339477765
A141: =A140+Sheet2!G$5 -> -2.31 | B141: -4.431217417 | C141: =(B142-B141)/Sheet2!$G$5 -> -22.10800981 | D141: 54.07147099 | E141: -30.58618061 | J141: =IF(AND(E141>G$7,E141<G$8),A141,Sheet1!$Q$22) -> -0.3 | K141: 1.339477765
A142: =A141+Sheet2!G$5 -> -2.31 | B142: -4.541647037 | C142: =(B143-B142)/Sheet2!$G$5 -> -21.83930469 | D142: 53.79476468 | E142: -30.46210548 | J142: =IF(AND(E142>G$7,E142<G$8),A142,Sheet1!$Q$22) -> -0.3 | K142: 1.339477765
A143: =A142+Sheet2!G$5 -> -2.30 | B143: -4.650734473 | C143: =(B144-B143)/Sheet2!$G$5 -> -21.57197873 | D143: 53.51865717 | E143: -30.33825332 | J143: =IF(AND(E143>G$7,E143<G$8),A143,Sheet1!$Q$22) -> -0.3 | K143: 1.339477765
A144: =A143+Sheet2!G$5 -> -2.30 | B144: -4.758486614 | C144: =(B145-B144)/Sheet2!$G$5 -> -21.30602894 | D144: 53.24314846 | E144: -30.21462412 | J144: =IF(AND(E144>G$7,E144<G$8),A144,Sheet1!$Q$22) -> -0.3 | K144: 1.339477765
A145: =A144+Sheet2!G$5 -> -2.29 | B145: -4.864910335 | C145: =(B146-B145)/Sheet2!$G$5 -> -21.04145232 | D145: 52.96823855 | E145: -30.09121789 | J145: =IF(AND(E145>G$7,E145<G$8),A145,Sheet1!$Q$22) -> -0.3 | K145: 1.339477765
A146: =A145+Sheet2!G$5 -> -2.29 | B146: -4.970012495 | C146: =(B147-B146)/Sheet2!$G$5 -> -20.77824589 | D146: 52.69392745 | E146: -29.96803462 | J146: =IF(AND(E146>G$7,E146<G$8),A146,Sheet1!$Q$22) -> -0.3 | K146: 1.339477765
A147: =A146+Sheet2!G$5 -> -2.28 | B147: -5.073799937 | C147: =(B148-B147)/Sheet2!$G$5 -> -20.51640665 | D147: 52.42021515 | E147: -29.84507431 | J147: =IF(AND(E147>G$7,E147<G$8),A147,Sheet1!$Q$22) -> -0.3 | K147: 1.339477765
A148: =A147+Sheet2!G$5 -> -2.28 | B148: -5.176279491 | C148: =(B149-B148)/Sheet2!$G$5 -> -20.25593162 | D148: 52.14710165 | E148: -29.72233697 | J148: =IF(AND(E148>G$7,E148<G$8),A148,Sheet1!$Q$22) -> -0.3 | K148: 1.339477765
A149: =A148+Sheet2!G$5 -> -2.27 | B149: -5.27745797 | C149: =(B150-B149)/Sheet2!$G$5 -> -19.9968178 | D149: 51.87458695 | E149: -29.5998226 | J149: =IF(AND(E149>G$7,E149<G$8),A149,Sheet1!$Q$22) -> -0.3 | K149: 1.339477765
A150: =A149+Sheet2!G$5 -> -2.27 | B150: -5.377342175 | C150: =(B151-B150)/Sheet2!$G$5 -> -19.7390622 | D150: 51.60267106 | E150: -29.47753119 | J150: =IF(AND(E150>G$7,E150<G$8),A150,Sheet1!$Q$22) -> -0.3 | K150: 1.339477765
A151: =A150+Sheet2!G$5 -> -2.26 | B151: -5.475938889 | C151: =(B152-B151)/Sheet2!$G$5 -> -19.48266183 | D151: 51.33135396 | E151: -29.35546274 | J151: =IF(AND(E151>G$7,E151<G$8),A151,Sheet1!$Q$22) -> -0.3 | K151: 1.339477765
A152: =A151+Sheet2!G$5 -> -2.26 | B152: -5.573254882 | C152: =(B153-B152)/Sheet2!$G$5 -> -19.2276137 | D152: 51.06063567 | E152: -29.23361726 | J152: =IF(AND(E152>G$7,E152<G$8),A152,Sheet1!$Q$22) -> -0.3 | K152: 1.339477765
A153: =A152+Sheet2!G$5 -> -2.25 | B153: -5.669296909 | C153: =(B154-B153)/Sheet2!$G$5 -> -18.97391482 | D153: 50.79051618 | E153: -29.11199474 | J153: =IF(AND(E153>G$7,E153<G$8),A153,Sheet1!$Q$22) -> -0.3 | K153: 1.339477765
A154: =A153+Sheet2!G$5 -> -2.25 | B154: -5.764071708 | C154: =(B155-B154)/Sheet2!$G$5 -> -18.72156219 | D154: 50.52099549 | E154: -28.99059519 | J154: =IF(AND(E154>G$7,E154<G$8),A154,Sheet1!$Q$22) -> -0.3 | K154: 1.339477765
A155: =A154+Sheet2!G$5 -> -2.24 | B155: -5.857586005 | C155: =(B156-B155)/Sheet2!$G$5 -> -18.47055284 | D155: 50.2520736 | E155: -28.8694186 | J155: =IF(AND(E155>G$7,E155<G$8),A155,Sheet1!$Q$22) -> -0.3 | K155: 1.339477765
A156: =A155+Sheet2!G$5 -> -2.24 | B156: -5.949846509 | C156: =(B157-B156)/Sheet2!$G$5 -> -18.22088375 | D156: 49.98375052 | E156: -28.74846498 | J156: =IF(AND(E156>G$7,E156<G$8),A156,Sheet1!$Q$22) -> -0.3 | K156: 1.339477765
A157: =A156+Sheet2!G$5 -> -2.23 | B157: -6.040859914 | C157: =(B158-B157)/Sheet2!$G$5 -> -17.97255195 | D157: 49.71602623 | E157: -28.62773432 | J157: =IF(AND(E157>G$7,E157<G$8),A157,Sheet1!$Q$22) -> -0.3 | K157: 1.339477765
A158: =A157+Sheet2!G$5 -> -2.23 | B158: -6.130632901 | C158: =(B159-B158)/Sheet2!$G$5 -> -17.72555445 | D158: 49.44890075 | E158: -28.50722663 | J158: =IF(AND(E158>G$7,E158<G$8),A158,Sheet1!$Q$22) -> -0.3 | K158: 1.339477765
A159: =A158+Sheet2!G$5 -> -2.22 | B159: -6.219172134 | C159: =(B160-B159)/Sheet2!$G$5 -> -17.47988824 | D159: 49.18237407 | E159: -28.3869419 | J159: =IF(AND(E159>G$7,E159<G$8),A159,Sheet1!$Q$22) -> -0.3 | K159: 1.339477765
A160: =A159+Sheet2!G$5 -> -2.22 | B160: -6.306484263 | C160: =(B161-B160)/Sheet2!$G$5 -> -17.23555035 | D160: 48.91644619 | E160: -28.26688014 | J160: =IF(AND(E160>G$7,E160<G$8),A160,Sheet1!$Q$22) -> -0.3 | K160: 1.339477765
A161: =A160+Sheet2!G$5 -> -2.21 | B161: -6.392575923 | C161: =(B162-B161)/Sheet2!$G$5 -> -16.99253778 | D161: 48.65111711 | E161: -28.14704134 | J161: =IF(AND(E161>G$7,E161<G$8),A161,Sheet1!$Q$22) -> -0.3 | K161: 1.339477765
A162: =A161+Sheet2!G$5 -> -2.21 | B162: -6.477453734 | C162: =(B163-B162)/Sheet2!$G$5 -> -16.75084753 | D162: 48.38638684 | E162: -28.0274255 | J162: =IF(AND(E162>G$7,E162<G$8),A162,Sheet1!$Q$22) -> -0.3 | K162: 1.339477765
A163: =A162+Sheet2!G$5 -> -2.20 | B163: -6.561124301 | C163: =(B164-B163)/Sheet2!$G$5 -> -16.51047663 | D163: 48.12225537 | E163: -27.90803263 | J163: =IF(AND(E163>G$7,E163<G$8),A163,Sheet1!$Q$22) -> -0.3 | K163: 1.339477765
A164: =A163+Sheet2!G$5 -> -2.20 | B164: -6.643594214 | C164: =(B165-B164)/Sheet2!$G$5 -> -16.27142207 | D164: 47.8587227 | E164: -27.78886272 | J164: =IF(AND(E164>G$7,E164<G$8),A164,Sheet1!$Q$22) -> -0.3 | K164: 1.339477765
A165: =A164+Sheet2!G$5 -> -2.19 | B165: -6.724870049 | C165: =(B166-B165)/Sheet2!$G$5 -> -16.03368086 | D165: 47.59578883 | E165: -27.66991578 | J165: =IF(AND(E165>G$7,E165<G$8),A165,Sheet1!$Q$22) -> -0.3 | K165: 1.339477765
A166: =A165+Sheet2!G$5 -> -2.19 | B166: -6.804958365 | C166: =(B167-B166)/Sheet2!$G$5 -> -15.79725003 | D166: 47.33345376 | E166: -27.5511918 | J166: =IF(AND(E166>G$7,E166<G$8),A166,Sheet1!$Q$22) -> -0.3 | K166: 1.339477765
A167: =A166+Sheet2!G$5 -> -2.18 | B167: -6.883865707 | C167: =(B168-B167)/Sheet2!$G$5 -> -15.56212656 | D167: 47.07171749 | E167: -27.43269079 | J167: =IF(AND(E167>G$7,E167<G$8),A167,Sheet1!$Q$22) -> -0.3 | K167: 1.339477765
A168: =A167+Sheet2!G$5 -> -2.18 | B168: -6.961598607 | C168: =(B169-B168)/Sheet2!$G$5 -> -15.32830748 | D168: 46.81058003 | E168: -27.31441274 | J168: =IF(AND(E168>G$7,E168<G$8),A168,Sheet1!$Q$22) -> -0.3 | K168: 1.339477765
A169: =A168+Sheet2!G$5 -> -2.17 | B169: -7.03816358 | C169: =(B170-B169)/Sheet2!$G$5 -> -15.09578979 | D169: 46.55004137 | E169: -27.19635766 | J169: =IF(AND(E169>G$7,E169<G$8),A169,Sheet1!$Q$22) -> -0.3 | K169: 1.339477765
A170: =A169+Sheet2!G$5 -> -2.17 | B170: -7.113567125 | C170: =(B171-B170)/Sheet2!$G$5 -> -14.8645705 | D170: 46.29010151 | E170: -27.07852554 | J170: =IF(AND(E170>G$7,E170<G$8),A170,Sheet1!$Q$22) -> -0.3 | K170: 1.339477765
A171: =A170+Sheet2!G$5 -> -2.16 | B171: -7.187815729 | C171: =(B172-B171)/Sheet2!$G$5 -> -14.63464663 | D171: 46.03076045 | E171: -26.96091639 | J171: =IF(AND(E171>G$7,E171<G$8),A171,Sheet1!$Q$22) -> -0.3 | K171: 1.339477765
A172: =A171+Sheet2!G$5 -> -2.16 | B172: -7.260915862 | C172: =(B173-B172)/Sheet2!$G$5 -> -14.40601517 | D172: 45.77201819 | E172: -26.8435302 | J172: =IF(AND(E172>G$7,E172<G$8),A172,Sheet1!$Q$22) -> -0.3 | K172: 1.339477765
A173: =A172+Sheet2!G$5 -> -2.15 | B173: -7.33287398 | C173: =(B174-B173)/Sheet2!$G$5 -> -14.17867313 | D173: 45.51387474 | E173: -26.72636698 | J173: =IF(AND(E173>G$7,E173<G$8),A173,Sheet1!$Q$22) -> -0.3 | K173: 1.339477765
A174: =A173+Sheet2!G$5 -> -2.15 | B174: -7.403696523 | C174: =(B175-B174)/Sheet2!$G$5 -> -13.95261754 | D174: 45.25633008 | E174: -26.60942671 | J174: =IF(AND(E174>G$7,E174<G$8),A174,Sheet1!$Q$22) -> -0.3 | K174: 1.339477765
A175: =A174+Sheet2!G$5 -> -2.14 | B175: -7.473389917 | C175: =(B176-B175)/Sheet2!$G$5 -> -13.72784539 | D175: 44.99938423 | E175: -26.49270942 | J175: =IF(AND(E175>G$7,E175<G$8),A175,Sheet1!$Q$22) -> -0.3 | K175: 1.339477765
A176: =A175+Sheet2!G$5 -> -2.14 | B176: -7.541960574 | C176: =(B177-B176)/Sheet2!$G$5 -> -13.5043537 | D176: 44.74303718 | E176: -26.37621509 | J176: =IF(AND(E176>G$7,E176<G$8),A176,Sheet1!$Q$22) -> -0.3 | K176: 1.339477765
A177: =A176+Sheet2!G$5 -> -2.13 | B177: -7.609414888 | C177: =(B178-B177)/Sheet2!$G$5 -> -13.28213947 | D177: 44.48728893 | E177: -26.25994372 | J177: =IF(AND(E177>G$7,E177<G$8),A177,Sheet1!$Q$22) -> -0.3 | K177: 1.339477765
A178: =A177+Sheet2!G$5 -> -2.13 | B178: -7.675759241 | C178: =(B179-B178)/Sheet2!$G$5 -> -13.06119971 | D178: 44.23213949 | E178: -26.14389532 | J178: =IF(AND(E178>G$7,E178<G$8),A178,Sheet1!$Q$22) -> -0.3 | K178: 1.339477765
A179: =A178+Sheet2!G$5 -> -2.12 | B179: -7.740999999 | C179: =(B180-B179)/Sheet2!$G$5 -> -12.84153143 | D179: 43.97758884 | E179: -26.02806988 | J179: =IF(AND(E179>G$7,E179<G$8),A179,Sheet1!$Q$22) -> -0.3 | K179: 1.339477765
A180: =A179+Sheet2!G$5 -> -2.12 | B180: -7.805143512 | C180: =(B181-B180)/Sheet2!$G$5 -> -12.62313165 | D180: 43.723637 | E180: -25.91246741 | J180: =IF(AND(E180>G$7,E180<G$8),A180,Sheet1!$Q$22) -> -0.3 | K180: 1.339477765
A181: =A180+Sheet2!G$5 -> -2.11 | B181: -7.868196118 | C181: =(B182-B181)/Sheet2!$G$5 -> -12.40599736 | D181: 43.47028396 | E181: -25.7970879 | J181: =IF(AND(E181>G$7,E181<G$8),A181,Sheet1!$Q$22) -> -0.3 | K181: 1.339477765
A182: =A181+Sheet2!G$5 -> -2.11 | B182: -7.930164137 | C182: =(B183-B182)/Sheet2!$G$5 -> -12.19012558 | D182: 43.21752972 | E182: -25.68193136 | J182: =IF(AND(E182>G$7,E182<G$8),A182,Sheet1!$Q$22) -> -0.3 | K182: 1.339477765
A183: =A182+Sheet2!G$5 -> -2.10 | B183: -7.991053875 | C183: =(B184-B183)/Sheet2!$G$5 -> -11.97551333 | D183: 42.96537429 | E183: -25.56699778 | J183: =IF(AND(E183>G$7,E183<G$8),A183,Sheet1!$Q$22) -> -0.3 | K183: 1.339477765
A184: =A183+Sheet2!G$5 -> -2.10 | B184: -8.050871624 | C184: =(B185-B184)/Sheet2!$G$5 -> -11.76215759 | D184: 42.71381765 | E184: -25.45228717 | J184: =IF(AND(E184>G$7,E184<G$8),A184,Sheet1!$Q$22) -> -0.3 | K184: 1.339477765
A185: =A184+Sheet2!G$5 -> -2.09 | B185: -8.10962366 | C185: =(B186-B185)/Sheet2!$G$5 -> -11.5500554 | D185: 42.46285982 | E185: -25.33779952 | J185: =IF(AND(E185>G$7,E185<G$8),A185,Sheet1!$Q$22) -> -0.3 | K185: 1.339477765
A186: =A185+Sheet2!G$5 -> -2.09 | B186: -8.167316244 | C186: =(B187-B186)/Sheet2!$G$5 -> -11.33920374 | D186: 42.21250079 | E186: -25.22353483 | J186: =IF(AND(E186>G$7,E186<G$8),A186,Sheet1!$Q$22) -> -0.3 | K186: 1.339477765
A187: =A186+Sheet2!G$5 -> -2.08 | B187: -8.223955623 | C187: =(B188-B187)/Sheet2!$G$5 -> -11.12959965 | D187: 41.96274056 | E187: -25.10949311 | J187: =IF(AND(E187>G$7,E187<G$8),A187,Sheet1!$Q$22) -> -0.3 | K187: 1.339477765
A188: =A187+Sheet2!G$5 -> -2.08 | B188: -8.279548029 | C188: =(B189-B188)/Sheet2!$G$5 -> -10.92124011 | D188: 41.71357913 | E188: -24.99567436 | J188: =IF(AND(E188>G$7,E188<G$8),A188,Sheet1!$Q$22) -> -0.3 | K188: 1.339477765
A189: =A188+Sheet2!G$5 -> -2.07 | B189: -8.334099678 | C189: =(B190-B189)/Sheet2!$G$5 -> -10.71412214 | D189: 41.4650165 | E189: -24.88207857 | J189: =IF(AND(E189>G$7,E189<G$8),A189,Sheet1!$Q$22) -> -0.3 | K189: 1.339477765
A190: =A189+Sheet2!G$5 -> -2.07 | B190: -8.387616772 | C190: =(B191-B190)/Sheet2!$G$5 -> -10.50824276 | D190: 41.21705268 | E190: -24.76870574 | J190: =IF(AND(E190>G$7,E190<G$8),A190,Sheet1!$Q$22) -> -0.3 | K190: 1.339477765
A191: =A190+Sheet2!G$5 -> -2.06 | B191: -8.440105497 | C191: =(B192-B191)/Sheet2!$G$5 -> -10.30359897 | D191: 40.96968765 | E191: -24.65555588 | J191: =IF(AND(E191>G$7,E191<G$8),A191,Sheet1!$Q$22) -> -0.3 | K191: 1.339477765
A192: =A191+Sheet2!G$5 -> -2.06 | B192: -8.491572025 | C192: =(B193-B192)/Sheet2!$G$5 -> -10.10018777 | D192: 40.72292143 | E192: -24.54262898 | J192: =IF(AND(E192>G$7,E192<G$8),A192,Sheet1!$Q$22) -> -0.3 | K192: 1.339477765
A193: =A192+Sheet2!G$5 -> -2.05 | B193: -8.542022513 | C193: =(B194-B193)/Sheet2!$G$5 -> -9.898006182 | D193: 40.47675401 | E193: -24.42992505 | J193: =IF(AND(E193>G$7,E193<G$8),A193,Sheet1!$Q$22) -> -0.3 | K193: 1.339477765
A194: =A193+Sheet2!G$5 -> -2.05 | B194: -8.591463104 | C194: =(B195-B194)/Sheet2!$G$5 -> -9.69705121 | D194: 40.2311854 | E194: -24.31744408 | J194: =IF(AND(E194>G$7,E194<G$8),A194,Sheet1!$Q$22) -> -0.3 | K194: 1.339477765
A195: =A194+Sheet2!G$5 -> -2.04 | B195: =x^4-5*x^2+4*x+3 -> -8.639899923 | C195: =(B196-B195)/Sheet2!$G$5 -> -9.497319863 | D195: 39.98621558 | E195: -24.20518608 | J195: =IF(AND(E195>G$7,E195<G$8),A195,Sheet1!$Q$22) -> -0.3 | K195: 1.339477765
A196: =A195+Sheet2!G$5 -> -2.04 | B196: -8.687339083 | C196: =(B197-B196)/Sheet2!$G$5 -> -9.298809151 | D196: 39.74184457 | E196: =G$10+G$11*(A196-G$9)+G$12*(A196-G$9)^2/2 -> -24.09315104 | J196: =IF(AND(E196>G$7,E196<G$8),A196,Sheet1!$Q$22) -> -0.3 | K196: =IF(AND(E196>G$7,E196<G$8),E196,G$10) -> 1.339477765
A197: =A196+Sheet2!G$5 -> -2.03 | B197: -8.733786681 | C197: =(B198-B197)/Sheet2!$G$5 -> -9.101516082 | D197: =(B198-2*B197+B196)/G$5^2 -> 39.49807236 | E197: -23.98133896 | J197: =IF(AND(E197>G$7,E197<G$8),A197,Sheet1!$Q$22) -> -0.3 | K197: 1.339477765
A198: =A197+Sheet2!G$5 -> -2.03 | B198: -8.7792488 | C198: =(B199-B198)/Sheet2!$G$5 -> -8.905437666 | D198: 39.25489895 | E198: -23.86974985 | J198: =IF(AND(E198>G$7,E198<G$8),A198,Sheet1!$Q$22) -> -0.3 | K198: 1.339477765
A199: =A198+Sheet2!G$5 -> -2.02 | B199: -8.823731505 | C199: =(B200-B199)/Sheet2!$G$5 -> -8.710570911 | D199: 39.01232434 | E199: -23.75838371 | J199: =IF(AND(E199>G$7,E199<G$8),A199,Sheet1!$Q$22) -> -0.3 | K199: 1.339477765
A200: =A199+Sheet2!G$5 -> -2.02 | B200: -8.86724085 | C200: =(B201-B200)/Sheet2!$G$5 -> -8.516912826 | D200: 38.77034853 | E200: -23.64724053 | J200: =IF(AND(E200>G$7,E200<G$8),A200,Sheet1!$Q$22) -> -0.3 | K200: 1.339477765
... 804 more rows

Sheet Defining Function
A1: Defining a Function in Excel
A3: Computers have very specific rules you must follow when defining a function. If you don't, the program will either not work at all or will work incorrectly.
A5: 1. The Variable used should be the one named in the instruction, usually x, though sometimes y, t, Q (for an angle theta),
A6: or even x and y (for a function of two variables).
A8: 2. Order of Operations: There five arithmetic operations, addition (+), subtraction (-), multiplication (*), division (/), and exponentiation or power (^). When computers see any of these operation symbols, they perform the indicated steps in a very particular order. First, the power is done. Second, products and quotients of adjacent terms is done. Third, and last, sums and differences of adjacent terms are done. So, in 10*x^3 + 5*x – 7, say with x = 2, the first pass only calculates 2^3 and ignores the multiplications and the sums and differences to calculate 2^3 = 8. The second pass looks at 10*8 + 5*2 – 7 and only does the multiplications, so it produces 80 + 10 - 7. The third pass looks at the +’s and –‘s to produce 80 + 10 – 7 = 83.
A10: 3. Parentheses If you need an operation involving more than two adjacent terms, as in Ö4^3 + 6^2, the computer would take the square root of 4 to produce 2^3 + 6^2; it would then cube the 2 and square the 6 to produce 8 + 36; and finally it would add the 8 and the 36 to get 44. If you actually wanted the square root of the entire expression, you would need to use parentheses, as in Ö(4^3 + 6^2) to tell the computer to do all the operations inside the parentheses before taking the square root. Therefore, it would calculate (4^3 + 6^2) = 64 + 36 = 100 and then take the square root of Ö100 = 10.
A12: 4. Built-In Functions Computer programs have built-in functions for most common algebraic functions. In Excel, the square root function is denoted by SQRT(…), so SQRT(100) = 10. Alternatively, you could enter it as 100^.5 or 100^(1/2); notice that parentheses are needed to have the ½ done first. The common trig functions are SIN (…), COS (…), and TAN (…), where the arguments are automatically interpreted as being in radians, not degrees. The logarithm to the base 10 is represented by LOG (…) and the logarithm with the base e, known as the natural logarithm, is LN (…). The corresponding exponential function with base e is EXP (x). If x is the variable, then each of these would be SQRT (x), SIN (x), COS (x), TAN (x), LOG (x) (for log with base 10 ), LN (x) (for log with base e ), and EXP (x).

Sheet Sheet3
